[Event "January 2 Early 2024"]
[Site "https://www.chess.com"]
[Date "2024.01.02"]
[Round "11"]
[White "Munoz Galvez, Jhon Edison"]
[Black "Rozman, Levy"]
[Result "1/2-1/2"]
[Board "61"]
[TimeControl "180+1"]
[WhiteFideId "4403797"]
[BlackFideId "2039877"]
[WhiteElo "2571"]
[BlackElo "2650"]
[WhiteTeam "COL"]
[BlackTeam "USA"]
[WhiteClock "0:00:16"]
[BlackClock "0:00:07"]

1. d4 {[%clk 0:03:00]}  g6 {[%clk 0:02:59]} 2. Nf3 {[%clk 0:02:59]}  Bg7 {[%clk 0:02:59]} 3. c4 {[%clk 0:02:59]}  d6 {[%clk 0:03:00]} 4. Nc3 {[%clk 0:02:59]}  Bg4 {[%clk 0:02:59]} 5. e3 {[%clk 0:02:57]}  Nc6 {[%clk 0:02:59]} 6. h3 {[%clk 0:02:57]}  Bd7 {[%clk 0:02:57]} 7. Be2 {[%clk 0:02:56]}  e5 {[%clk 0:02:57]} 8. d5 {[%clk 0:02:41]}  Nce7 {[%clk 0:02:57]} 9. e4 {[%clk 0:02:41]}  h6 {[%clk 0:02:54]} 10. g4 {[%clk 0:02:39]}  b6 {[%clk 0:02:45]} 11. Rg1 {[%clk 0:02:35]}  h5 {[%clk 0:02:32]} 12. Be3 {[%clk 0:02:34]}  hxg4 {[%clk 0:02:31]} 13. hxg4 {[%clk 0:02:33]}  Nf6 {[%clk 0:02:27]} 14. Nd2 {[%clk 0:02:32]}  Rh3 {[%clk 0:02:25]} 15. Qc2 {[%clk 0:02:15]}  Qc8 {[%clk 0:02:16]} 16. g5 {[%clk 0:02:12]}  Ng4 {[%clk 0:02:10]} 17. Bxg4 {[%clk 0:02:11]}  Bxg4 {[%clk 0:02:10]} 18. Nb5 {[%clk 0:02:06]}  Bh5 {[%clk 0:02:02]} 19. Qa4 {[%clk 0:02:01]}  Kf8 {[%clk 0:02:01]} 20. Nc3 {[%clk 0:01:50]}  Kg8 {[%clk 0:01:50]} 21. Nb3 {[%clk 0:01:49]}  a6 {[%clk 0:01:48]} 22. Kd2 {[%clk 0:01:48]}  Bf3 {[%clk 0:01:41]} 23. Rae1 {[%clk 0:01:39]}  c5 {[%clk 0:01:29]} 24. Kc1 {[%clk 0:01:25]}  f5 {[%clk 0:01:17]} 25. gxf6 {[%clk 0:01:24]}  Bxf6 {[%clk 0:01:17]} 26. Nd2 {[%clk 0:01:23]}  Bg4 {[%clk 0:01:14]} 27. Rh1 {[%clk 0:01:06]}  Qd7 {[%clk 0:01:07]} 28. Qxd7 {[%clk 0:00:59]}  Rxh1 {[%clk 0:01:05]} 29. Rxh1 {[%clk 0:00:58]}  Bxd7 {[%clk 0:00:53]} 30. Nf3 {[%clk 0:00:59]}  b5 {[%clk 0:00:50]} 31. b3 {[%clk 0:00:57]}  bxc4 {[%clk 0:00:46]} 32. bxc4 {[%clk 0:00:57]}  Rb8 {[%clk 0:00:47]} 33. Kc2 {[%clk 0:00:54]}  Rb4 {[%clk 0:00:43]} 34. Kd3 {[%clk 0:00:51]}  Rb2 {[%clk 0:00:42]} 35. Rb1 {[%clk 0:00:49]}  Rxb1 {[%clk 0:00:35]} 36. Nxb1 {[%clk 0:00:49]}  Nc8 {[%clk 0:00:31]} 37. Bg5 {[%clk 0:00:45]}  Kf7 {[%clk 0:00:31]} 38. Bxf6 {[%clk 0:00:45]}  Kxf6 {[%clk 0:00:32]} 39. Nc3 {[%clk 0:00:41]}  g5 {[%clk 0:00:32]} 40. Nd2 {[%clk 0:00:37]}  g4 {[%clk 0:00:29]} 41. Ke3 {[%clk 0:00:36]}  Kg5 {[%clk 0:00:29]} 42. Nb3 {[%clk 0:00:34]}  Nb6 {[%clk 0:00:29]} 43. Na5 {[%clk 0:00:35]}  Kh4 {[%clk 0:00:27]} 44. Ne2 {[%clk 0:00:35]}  Ba4 {[%clk 0:00:21]} 45. Ng3 {[%clk 0:00:32]}  Bd7 {[%clk 0:00:21]} 46. Kd3 {[%clk 0:00:32]}  Kh3 {[%clk 0:00:18]} 47. Nb7 {[%clk 0:00:28]}  Kg2 {[%clk 0:00:16]} 48. Nxd6 {[%clk 0:00:24]}  Kxf2 {[%clk 0:00:16]} 49. Nh5 {[%clk 0:00:22]}  g3 {[%clk 0:00:15]} 50. Nxg3 {[%clk 0:00:20]}  Kxg3 {[%clk 0:00:16]} 51. Nb7 {[%clk 0:00:18]}  Na4 {[%clk 0:00:15]} 52. Nd6 {[%clk 0:00:16]}  Kf4 {[%clk 0:00:15]} 53. Nf7 {[%clk 0:00:12]}  Bh3 {[%clk 0:00:12]} 54. d6 {[%clk 0:00:12]}  Nb6 {[%clk 0:00:11]} 55. Nd8 {[%clk 0:00:09]}  Bf1+ {[%clk 0:00:09]} 56. Kc3 {[%clk 0:00:09]}  Bxc4 {[%clk 0:00:06]} 57. Nb7 {[%clk 0:00:10]}  Bxa2 {[%clk 0:00:04]} 58. Nxc5 {[%clk 0:00:11]}  Ke3 {[%clk 0:00:02]} 59. d7 {[%clk 0:00:11]}  Nxd7 {[%clk 0:00:03]} 60. Nxd7 {[%clk 0:00:11]}  Kxe4 {[%clk 0:00:02]} 61. Nxe5 {[%clk 0:00:12]}  Kxe5 {[%clk 0:00:01]} 62. Kb2 {[%clk 0:00:13]}  Kd6 {[%clk 0:00:02]} 63. Ka1 {[%clk 0:00:13]}  Kc6 {[%clk 0:00:02]} 64. Kb2 {[%clk 0:00:14]}  Kb6 {[%clk 0:00:03]} 65. Ka1 {[%clk 0:00:15]}  Ka7 {[%clk 0:00:04]} 66. Kb2 {[%clk 0:00:16]}  Kb7 {[%clk 0:00:04]} 67. Ka1 {[%clk 0:00:17]}  Ka7 {[%clk 0:00:05]} 68. Kb2 {[%clk 0:00:15]}  Kb7 {[%clk 0:00:06]} 69. Ka1 {[%clk 0:00:16]}  Ka7 {[%clk 0:00:07]} 1/2-1/2

[Event "January 2 Early 2024"]
[Site "https://www.chess.com"]
[Date "2024.01.02"]
[Round "11"]
[White "Manukyan, Sargis A."]
[Black "Lund, Gunnar"]
[Result "1-0"]
[Board "62"]
[TimeControl "180+1"]
[WhiteFideId "13303970"]
[BlackFideId "1520814"]
[WhiteElo "2638"]
[BlackElo "2568"]
[WhiteTeam "ARM"]
[BlackTeam "NOR"]
[WhiteClock "0:00:40"]
[BlackClock "0:00:19"]

1. d4 {[%clk 0:03:00]}  d5 {[%clk 0:03:00]} 2. c4 {[%clk 0:03:00]}  e6 {[%clk 0:03:00]} 3. Nc3 {[%clk 0:03:00]}  Nf6 {[%clk 0:03:00]} 4. cxd5 {[%clk 0:02:59]}  exd5 {[%clk 0:03:00]} 5. Bg5 {[%clk 0:02:58]}  Be7 {[%clk 0:02:59]} 6. e3 {[%clk 0:02:58]}  c6 {[%clk 0:02:59]} 7. Bd3 {[%clk 0:02:57]}  Nbd7 {[%clk 0:02:59]} 8. Qc2 {[%clk 0:02:55]}  h6 {[%clk 0:02:59]} 9. Bf4 {[%clk 0:02:55]}  Nh5 {[%clk 0:02:56]} 10. Be5 {[%clk 0:02:53]}  Nhf6 {[%clk 0:02:41]} 11. Nf3 {[%clk 0:02:51]}  Nxe5 {[%clk 0:02:41]} 12. dxe5 {[%clk 0:02:49]}  Nd7 {[%clk 0:02:41]} 13. O-O {[%clk 0:02:48]}  O-O {[%clk 0:02:41]} 14. e4 {[%clk 0:02:49]}  Nc5 {[%clk 0:02:27]} 15. exd5 {[%clk 0:02:46]}  cxd5 {[%clk 0:02:27]} 16. Bh7+ {[%clk 0:02:42]}  Kh8 {[%clk 0:02:27]} 17. Bf5 {[%clk 0:02:43]}  d4 {[%clk 0:02:19]} 18. Bxc8 {[%clk 0:02:40]}  Rxc8 {[%clk 0:02:13]} 19. Rad1 {[%clk 0:02:39]}  Ne6 {[%clk 0:01:57]} 20. Qa4 {[%clk 0:02:33]}  Qb6 {[%clk 0:01:51]} 21. Nb5 {[%clk 0:02:32]}  Bc5 {[%clk 0:01:37]} 22. Nbxd4 {[%clk 0:02:28]}  Nxd4 {[%clk 0:01:37]} 23. Nxd4 {[%clk 0:02:29]}  Qxb2 {[%clk 0:01:38]} 24. Nf3 {[%clk 0:02:18]}  Rfd8 {[%clk 0:01:37]} 25. Qg4 {[%clk 0:02:12]}  Qxf2+ {[%clk 0:01:22]} 26. Kh1 {[%clk 0:02:06]}  Qxa2 {[%clk 0:01:21]} 27. Nh4 {[%clk 0:02:01]}  Qe6 {[%clk 0:01:21]} 28. Qf3 {[%clk 0:01:50]}  b6 {[%clk 0:01:14]} 29. g3 {[%clk 0:01:39]}  Rxd1 {[%clk 0:01:07]} 30. Rxd1 {[%clk 0:01:37]}  Re8 {[%clk 0:01:08]} 31. Re1 {[%clk 0:01:25]}  Bd4 {[%clk 0:01:06]} 32. Qb7 {[%clk 0:01:10]}  Re7 {[%clk 0:01:02]} 33. Qa8+ {[%clk 0:01:09]}  Kh7 {[%clk 0:01:02]} 34. Qe4+ {[%clk 0:01:09]}  g6 {[%clk 0:00:51]} 35. Qxd4 {[%clk 0:01:09]}  Rd7 {[%clk 0:00:52]} 36. Qe4 {[%clk 0:01:09]}  Qd5 {[%clk 0:00:52]} 37. Qxd5 {[%clk 0:01:07]}  Rxd5 {[%clk 0:00:53]} 38. Nf3 {[%clk 0:01:07]}  Kg7 {[%clk 0:00:50]} 39. Kg2 {[%clk 0:01:06]}  Kf8 {[%clk 0:00:45]} 40. e6 {[%clk 0:01:05]}  fxe6 {[%clk 0:00:45]} 41. Rxe6 {[%clk 0:01:06]}  Kf7 {[%clk 0:00:46]} 42. Rc6 {[%clk 0:01:06]}  Ra5 {[%clk 0:00:44]} 43. g4 {[%clk 0:01:03]}  Rc5 {[%clk 0:00:42]} 44. Rd6 {[%clk 0:00:55]}  h5 {[%clk 0:00:43]} 45. gxh5 {[%clk 0:00:52]}  gxh5 {[%clk 0:00:35]} 46. Rd7+ {[%clk 0:00:52]}  Kg6 {[%clk 0:00:32]} 47. Rxa7 {[%clk 0:00:53]}  Rb5 {[%clk 0:00:32]} 48. Rb7 {[%clk 0:00:52]}  Kf5 {[%clk 0:00:32]} 49. Kg3 {[%clk 0:00:53]}  Rb3 {[%clk 0:00:30]} 50. Rf7+ {[%clk 0:00:49]}  Kg6 {[%clk 0:00:29]} 51. Rc7 {[%clk 0:00:49]}  Kf5 {[%clk 0:00:27]} 52. h4 {[%clk 0:00:46]}  Ke4 {[%clk 0:00:24]} 53. Re7+ {[%clk 0:00:47]}  Kf5 {[%clk 0:00:23]} 54. Re5+ {[%clk 0:00:47]}  Kg6 {[%clk 0:00:21]} 55. Rg5+ {[%clk 0:00:47]}  Kh6 {[%clk 0:00:22]} 56. Kf4 {[%clk 0:00:46]}  Rb4+ {[%clk 0:00:20]} 57. Kf5 {[%clk 0:00:47]}  Rg4 {[%clk 0:00:18]} 58. Rxg4 {[%clk 0:00:40]}  hxg4 {[%clk 0:00:19]} 59. Kxg4 {[%clk 0:00:41]}  b5 {[%clk 0:00:19]} 60. Nd4 {[%clk 0:00:39]}  b4 {[%clk 0:00:20]} 61. h5 {[%clk 0:00:39]}  Kg7 {[%clk 0:00:18]} 62. Kg5 {[%clk 0:00:40]}  Kh7 {[%clk 0:00:19]} 63. h6 {[%clk 0:00:41]}  Kh8 {[%clk 0:00:19]} 64. Kg6 {[%clk 0:00:41]}  Kg8 {[%clk 0:00:19]} 65. h7+ {[%clk 0:00:38]}  Kh8 {[%clk 0:00:20]} 66. Nf5 {[%clk 0:00:38]}  b3 {[%clk 0:00:18]} 67. Nh6 {[%clk 0:00:39]}  b2 {[%clk 0:00:19]} 68. Nf7# {[%clk 0:00:40]} 1-0

[Event "January 2 Early 2024"]
[Site "https://www.chess.com"]
[Date "2024.01.02"]
[Round "11"]
[White "Bartel, Michal"]
[Black "Vallejo Diaz, Javier"]
[Result "0-1"]
[Board "63"]
[TimeControl "180+1"]
[WhiteFideId "1119257"]
[BlackFideId "2256398"]
[WhiteElo "2636"]
[BlackElo "2567"]
[WhiteTeam "POL"]
[BlackTeam "ESP"]
[WhiteClock "0:00:28"]
[BlackClock "0:00:07"]

1. e4 {[%clk 0:03:00]}  c5 {[%clk 0:02:59]} 2. Ne2 {[%clk 0:03:00]}  e6 {[%clk 0:02:59]} 3. g3 {[%clk 0:03:01]}  Nc6 {[%clk 0:02:55]} 4. Bg2 {[%clk 0:03:01]}  g6 {[%clk 0:02:56]} 5. d4 {[%clk 0:02:58]}  cxd4 {[%clk 0:02:55]} 6. Nxd4 {[%clk 0:02:59]}  a6 {[%clk 0:02:55]} 7. Nxc6 {[%clk 0:02:53]}  dxc6 {[%clk 0:02:51]} 8. Qxd8+ {[%clk 0:02:52]}  Kxd8 {[%clk 0:02:52]} 9. O-O {[%clk 0:02:45]}  e5 {[%clk 0:02:51]} 10. Be3 {[%clk 0:02:43]}  Kc7 {[%clk 0:02:49]} 11. Nc3 {[%clk 0:02:43]}  b5 {[%clk 0:02:35]} 12. f4 {[%clk 0:02:33]}  Be6 {[%clk 0:02:34]} 13. fxe5 {[%clk 0:02:13]}  Bg7 {[%clk 0:02:31]} 14. Nd5+ {[%clk 0:02:09]}  Kb7 {[%clk 0:02:06]} 15. Nf6 {[%clk 0:02:07]}  Nxf6 {[%clk 0:02:02]} 16. exf6 {[%clk 0:02:07]}  Bf8 {[%clk 0:02:02]} 17. b3 {[%clk 0:01:57]}  Bb4 {[%clk 0:01:58]} 18. Rad1 {[%clk 0:01:55]}  Rad8 {[%clk 0:01:56]} 19. Bf3 {[%clk 0:01:38]}  Rde8 {[%clk 0:01:41]} 20. Bd4 {[%clk 0:01:31]}  Bh3 {[%clk 0:01:39]} 21. Rf2 {[%clk 0:01:31]}  Rd8 {[%clk 0:01:25]} 22. c3 {[%clk 0:01:22]}  Ba5 {[%clk 0:01:24]} 23. Rfd2 {[%clk 0:01:18]}  Rhe8 {[%clk 0:01:08]} 24. Kf2 {[%clk 0:01:09]}  Be6 {[%clk 0:01:07]} 25. Rd3 {[%clk 0:00:53]}  Rc8 {[%clk 0:01:05]} 26. Bc5 {[%clk 0:00:52]}  Bc7 {[%clk 0:01:01]} 27. Be7 {[%clk 0:00:49]}  Be5 {[%clk 0:01:00]} 28. Ke3 {[%clk 0:00:47]}  h5 {[%clk 0:00:56]} 29. Kd2 {[%clk 0:00:43]}  h4 {[%clk 0:00:50]} 30. Rg1 {[%clk 0:00:34]}  hxg3 {[%clk 0:00:49]} 31. hxg3 {[%clk 0:00:35]}  Rh8 {[%clk 0:00:49]} 32. Bd6 {[%clk 0:00:34]}  Bxf6 {[%clk 0:00:48]} 33. e5 {[%clk 0:00:28]}  Bg5+ {[%clk 0:00:48]} 34. Ke2 {[%clk 0:00:25]}  Bf5 {[%clk 0:00:47]} 35. Rd4 {[%clk 0:00:22]}  Rh2+ {[%clk 0:00:46]} 36. Rg2 {[%clk 0:00:22]}  Rh1 {[%clk 0:00:43]} 37. c4 {[%clk 0:00:21]}  Ra1 {[%clk 0:00:42]} 38. cxb5 {[%clk 0:00:18]}  axb5 {[%clk 0:00:42]} 39. a3 {[%clk 0:00:18]}  Rh8 {[%clk 0:00:31]} 40. Rb4 {[%clk 0:00:14]}  Ra2+ {[%clk 0:00:27]} 41. Kf1 {[%clk 0:00:14]}  Rh1+ {[%clk 0:00:26]} 42. Rg1 {[%clk 0:00:14]}  Ra1+ {[%clk 0:00:27]} 43. Kf2 {[%clk 0:00:15]}  Rhxg1 {[%clk 0:00:26]} 44. Rxb5+ {[%clk 0:00:15]}  Ka6 {[%clk 0:00:22]} 45. Bxc6 {[%clk 0:00:15]}  Raf1+ {[%clk 0:00:22]} 46. Ke2 {[%clk 0:00:15]}  Bg4+ {[%clk 0:00:21]} 47. Kd3 {[%clk 0:00:15]}  Rd1+ {[%clk 0:00:21]} 48. Kc4 {[%clk 0:00:16]}  Rc1+ {[%clk 0:00:21]} 49. Kb4 {[%clk 0:00:16]}  Rxc6 {[%clk 0:00:19]} 50. Ra5+ {[%clk 0:00:16]}  Kb7 {[%clk 0:00:19]} 51. Rb5+ {[%clk 0:00:16]}  Rb6 {[%clk 0:00:20]} 52. Rxb6+ {[%clk 0:00:16]}  Kxb6 {[%clk 0:00:20]} 53. Bc5+ {[%clk 0:00:17]}  Kc6 {[%clk 0:00:20]} 54. Bxg1 {[%clk 0:00:18]}  Bd2+ {[%clk 0:00:19]} 55. Kc4 {[%clk 0:00:18]}  Be6+ {[%clk 0:00:19]} 56. Kd3 {[%clk 0:00:18]}  Bc1 {[%clk 0:00:20]} 57. a4 {[%clk 0:00:18]}  Bxb3 {[%clk 0:00:20]} 58. a5 {[%clk 0:00:18]}  Kb5 {[%clk 0:00:20]} 59. Kc3 {[%clk 0:00:17]}  Be6 {[%clk 0:00:20]} 60. Kc2 {[%clk 0:00:17]}  Ba3 {[%clk 0:00:18]} 61. Kd3 {[%clk 0:00:17]}  Kxa5 {[%clk 0:00:18]} 62. Ke4 {[%clk 0:00:18]}  Kb5 {[%clk 0:00:18]} 63. Be3 {[%clk 0:00:18]}  Be7 {[%clk 0:00:19]} 64. Bd2 {[%clk 0:00:18]}  Kc4 {[%clk 0:00:19]} 65. Bg5 {[%clk 0:00:19]}  Bxg5 {[%clk 0:00:19]} 66. g4 {[%clk 0:00:20]}  Bxg4 {[%clk 0:00:14]} 67. e6 {[%clk 0:00:19]}  Bxe6 {[%clk 0:00:15]} 68. Ke5 {[%clk 0:00:20]}  Be7 {[%clk 0:00:14]} 69. Ke4 {[%clk 0:00:21]}  g5 {[%clk 0:00:15]} 70. Ke5 {[%clk 0:00:22]}  Bd8 {[%clk 0:00:13]} 71. Ke4 {[%clk 0:00:23]}  Bc7 {[%clk 0:00:12]} 72. Kf3 {[%clk 0:00:23]}  g4+ {[%clk 0:00:12]} 73. Kg2 {[%clk 0:00:24]}  f5 {[%clk 0:00:12]} 74. Kf2 {[%clk 0:00:25]}  Bd5 {[%clk 0:00:11]} 75. Kg1 {[%clk 0:00:25]}  f4 {[%clk 0:00:11]} 76. Kf2 {[%clk 0:00:26]}  g3+ {[%clk 0:00:11]} 77. Kf1 {[%clk 0:00:27]}  g2+ {[%clk 0:00:10]} 78. Kg1 {[%clk 0:00:28]}  Bb6+ {[%clk 0:00:11]} 79. Kh2 {[%clk 0:00:29]}  g1=Q+ {[%clk 0:00:11]} 80. Kh3 {[%clk 0:00:30]}  Be6+ {[%clk 0:00:10]} 81. Kh4 {[%clk 0:00:29]}  Bd4 {[%clk 0:00:07]} 82. Kh5 {[%clk 0:00:26]}  Bf6 {[%clk 0:00:07]} 83. Kh6 {[%clk 0:00:27]}  Qg5+ {[%clk 0:00:07]} 84. Kh7 {[%clk 0:00:28]}  Qg7# {[%clk 0:00:07]} 0-1

[Event "January 2 Early 2024"]
[Site "https://www.chess.com"]
[Date "2024.01.02"]
[Round "11"]
[White "Zavgorodniy, Sergiy"]
[Black "Ljukin, Sergei"]
[Result "1-0"]
[Board "64"]
[TimeControl "180+1"]
[WhiteFideId "14110148"]
[BlackFideId "14102200"]
[WhiteElo "2631"]
[BlackElo "2528"]
[WhiteTeam "UKR"]
[BlackTeam "UKR"]
[WhiteClock "0:00:18"]
[BlackClock "0:00:02"]

1. e4 {[%clk 0:02:51]}  e6 {[%clk 0:02:56]} 2. d3 {[%clk 0:02:50]}  d5 {[%clk 0:02:56]} 3. Nd2 {[%clk 0:02:50]}  Nf6 {[%clk 0:02:57]} 4. Ngf3 {[%clk 0:02:49]}  Be7 {[%clk 0:02:57]} 5. g3 {[%clk 0:02:49]}  c5 {[%clk 0:02:57]} 6. Bg2 {[%clk 0:02:49]}  Nc6 {[%clk 0:02:58]} 7. O-O {[%clk 0:02:49]}  O-O {[%clk 0:02:58]} 8. e5 {[%clk 0:02:47]}  Nd7 {[%clk 0:02:58]} 9. Re1 {[%clk 0:02:47]}  Qc7 {[%clk 0:02:58]} 10. Qe2 {[%clk 0:02:47]}  b5 {[%clk 0:02:59]} 11. h4 {[%clk 0:02:47]}  Qb6 {[%clk 0:02:59]} 12. Nf1 {[%clk 0:02:47]}  c4 {[%clk 0:02:59]} 13. N1h2 {[%clk 0:02:33]}  cxd3 {[%clk 0:03:00]} 14. cxd3 {[%clk 0:02:33]}  b4 {[%clk 0:03:00]} 15. h5 {[%clk 0:02:30]}  b3 {[%clk 0:03:00]} 16. h6 {[%clk 0:02:27]}  g6 {[%clk 0:02:59]} 17. Be3 {[%clk 0:02:22]}  Qb5 {[%clk 0:02:54]} 18. a4 {[%clk 0:02:19]}  Qb4 {[%clk 0:02:43]} 19. Rac1 {[%clk 0:02:14]}  Qxa4 {[%clk 0:02:12]} 20. Rxc6 {[%clk 0:01:49]}  Qxc6 {[%clk 0:02:12]} 21. Rc1 {[%clk 0:01:49]}  Qa4 {[%clk 0:02:05]} 22. d4 {[%clk 0:01:36]}  Ba6 {[%clk 0:02:05]} 23. Qe1 {[%clk 0:01:35]}  Bd3 {[%clk 0:01:48]} 24. Ng4 {[%clk 0:01:26]}  Rfc8 {[%clk 0:01:45]} 25. Ra1 {[%clk 0:01:25]}  Qb5 {[%clk 0:01:42]} 26. Bg5 {[%clk 0:01:23]}  Bf8 {[%clk 0:01:34]} 27. Qe3 {[%clk 0:00:54]}  Bf5 {[%clk 0:00:41]} 28. Bf1 {[%clk 0:00:51]}  Qb6 {[%clk 0:00:24]} 29. Nf6+ {[%clk 0:00:38]}  Nxf6 {[%clk 0:00:24]} 30. Bxf6 {[%clk 0:00:38]}  a5 {[%clk 0:00:19]} 31. Qf4 {[%clk 0:00:37]}  Rc7 {[%clk 0:00:05]} 32. g4 {[%clk 0:00:36]}  Be4 {[%clk 0:00:05]} 33. Ng5 {[%clk 0:00:35]}  Qxd4 {[%clk 0:00:05]} 34. Bg7 {[%clk 0:00:30]}  Bxg7 {[%clk 0:00:04]} 35. hxg7 {[%clk 0:00:30]}  a4 {[%clk 0:00:02]} 36. Qh2 {[%clk 0:00:19]}  a3 {[%clk 0:00:02]} 37. Qxh7# {[%clk 0:00:18]} 1-0

[Event "January 2 Early 2024"]
[Site "https://www.chess.com"]
[Date "2024.01.02"]
[Round "11"]
[White "Gontcharov, Vladislav"]
[Black "Shapiro, Viktor"]
[Result "0-1"]
[Board "65"]
[TimeControl "180+1"]
[WhiteFideId "4123492"]
[BlackFideId "4175700"]
[WhiteElo "2631"]
[BlackElo "2522"]
[WhiteTeam "RUS"]
[BlackTeam "RUS"]
[WhiteClock "0:00:12"]
[BlackClock "0:00:39"]

1. e4 {[%clk 0:03:00]}  Nf6 {[%clk 0:03:00]} 2. e5 {[%clk 0:02:59]}  Nd5 {[%clk 0:03:00]} 3. d4 {[%clk 0:02:59]}  d6 {[%clk 0:03:00]} 4. c4 {[%clk 0:02:59]}  Nb6 {[%clk 0:03:01]} 5. f4 {[%clk 0:02:59]}  dxe5 {[%clk 0:03:01]} 6. fxe5 {[%clk 0:03:00]}  c5 {[%clk 0:03:01]} 7. d5 {[%clk 0:02:53]}  g6 {[%clk 0:03:02]} 8. Bd3 {[%clk 0:02:41]}  Bg7 {[%clk 0:03:02]} 9. Nf3 {[%clk 0:02:39]}  Bg4 {[%clk 0:03:01]} 10. Bf4 {[%clk 0:02:29]}  e6 {[%clk 0:03:01]} 11. O-O {[%clk 0:02:24]}  exd5 {[%clk 0:02:57]} 12. cxd5 {[%clk 0:02:23]}  Nxd5 {[%clk 0:02:53]} 13. Bg5 {[%clk 0:02:18]}  Qxg5 {[%clk 0:02:43]} 14. Bb5+ {[%clk 0:02:13]}  Nc6 {[%clk 0:02:36]} 15. Nxg5 {[%clk 0:01:49]}  Bxd1 {[%clk 0:02:35]} 16. Nxf7 {[%clk 0:01:50]}  Bc2 {[%clk 0:02:13]} 17. Nd6+ {[%clk 0:01:38]}  Kd8 {[%clk 0:01:57]} 18. Nxb7+ {[%clk 0:01:37]}  Kc7 {[%clk 0:01:57]} 19. Rf7+ {[%clk 0:01:36]}  Kb6 {[%clk 0:01:58]} 20. Nd6 {[%clk 0:01:15]}  Nc7 {[%clk 0:01:43]} 21. Na3 {[%clk 0:01:04]}  Nxb5 {[%clk 0:01:36]} 22. Naxb5 {[%clk 0:00:54]}  Nxe5 {[%clk 0:01:25]} 23. Rxg7 {[%clk 0:00:51]}  a6 {[%clk 0:01:18]} 24. Na3 {[%clk 0:00:44]}  Bd3 {[%clk 0:01:13]} 25. Re1 {[%clk 0:00:41]}  Rad8 {[%clk 0:01:04]} 26. Nb7 {[%clk 0:00:26]}  Rd5 {[%clk 0:01:03]} 27. b3 {[%clk 0:00:13]}  Rb8 {[%clk 0:01:02]} 28. Re7 {[%clk 0:00:13]}  Rxb7 {[%clk 0:00:58]} 29. R7xe5 {[%clk 0:00:13]}  Rxe5 {[%clk 0:00:58]} 30. Rxe5 {[%clk 0:00:13]}  Rd7 {[%clk 0:00:57]} 31. Kf2 {[%clk 0:00:13]}  Kc6 {[%clk 0:00:53]} 32. Ke3 {[%clk 0:00:13]}  Bb5 {[%clk 0:00:50]} 33. Re6+ {[%clk 0:00:13]}  Rd6 {[%clk 0:00:50]} 34. Rxd6+ {[%clk 0:00:13]}  Kxd6 {[%clk 0:00:50]} 35. Nxb5+ {[%clk 0:00:13]}  axb5 {[%clk 0:00:50]} 36. a4 {[%clk 0:00:13]}  c4 {[%clk 0:00:39]} 37. a5 {[%clk 0:00:09]}  cxb3 {[%clk 0:00:38]} 38. Kd3 {[%clk 0:00:09]}  b4 {[%clk 0:00:35]} 39. Kd2 {[%clk 0:00:09]}  Kc5 {[%clk 0:00:35]} 40. Kc1 {[%clk 0:00:10]}  Kb5 {[%clk 0:00:35]} 41. Kb2 {[%clk 0:00:11]}  Kxa5 {[%clk 0:00:36]} 42. Kxb3 {[%clk 0:00:12]}  Kb5 {[%clk 0:00:36]} 43. g4 {[%clk 0:00:12]}  g5 {[%clk 0:00:36]} 44. h3 {[%clk 0:00:12]}  h6 {[%clk 0:00:36]} 45. Kb2 {[%clk 0:00:13]}  Kc4 {[%clk 0:00:37]} 46. Kc2 {[%clk 0:00:14]}  b3+ {[%clk 0:00:37]} 47. Kb2 {[%clk 0:00:14]}  Kb4 {[%clk 0:00:38]} 48. Kb1 {[%clk 0:00:13]}  Kc3 {[%clk 0:00:38]} 49. Kc1 {[%clk 0:00:13]}  Kd3 {[%clk 0:00:37]} 50. Kb2 {[%clk 0:00:13]}  Ke3 {[%clk 0:00:37]} 51. Kxb3 {[%clk 0:00:14]}  Kf3 {[%clk 0:00:38]} 52. Kc3 {[%clk 0:00:15]}  Kg3 {[%clk 0:00:38]} 53. Kd4 {[%clk 0:00:12]}  Kxh3 {[%clk 0:00:39]} 0-1

[Event "January 2 Early 2024"]
[Site "https://www.chess.com"]
[Date "2024.01.02"]
[Round "11"]
[White "Mikhalsky, Vladimir"]
[Black "Yagupov, Igor"]
[Result "0-1"]
[Board "66"]
[TimeControl "180+1"]
[WhiteFideId "14144352"]
[BlackFideId "4113632"]
[WhiteElo "2433"]
[BlackElo "2613"]
[WhiteTeam "UKR"]
[BlackTeam "RUS"]
[WhiteClock "0:00:14"]
[BlackClock "0:00:18"]

1. c4 {[%clk 0:02:55]}  c6 {[%clk 0:02:59]} 2. g3 {[%clk 0:02:53]}  d5 {[%clk 0:02:59]} 3. Bg2 {[%clk 0:02:54]}  Nf6 {[%clk 0:02:58]} 4. Nf3 {[%clk 0:02:53]}  Bg4 {[%clk 0:02:56]} 5. O-O {[%clk 0:02:53]}  e6 {[%clk 0:02:55]} 6. b3 {[%clk 0:02:52]}  Nbd7 {[%clk 0:02:54]} 7. Bb2 {[%clk 0:02:52]}  Bd6 {[%clk 0:02:55]} 8. h3 {[%clk 0:02:51]}  Bh5 {[%clk 0:02:53]} 9. d4 {[%clk 0:02:49]}  O-O {[%clk 0:02:49]} 10. g4 {[%clk 0:02:49]}  Bg6 {[%clk 0:02:48]} 11. Nh4 {[%clk 0:02:47]}  Bxb1 {[%clk 0:02:40]} 12. Rxb1 {[%clk 0:02:35]}  Nxg4 {[%clk 0:02:40]} 13. e4 {[%clk 0:02:34]}  Qxh4 {[%clk 0:02:35]} 14. Qxg4 {[%clk 0:02:23]}  Qxg4 {[%clk 0:02:34]} 15. hxg4 {[%clk 0:02:23]}  dxe4 {[%clk 0:02:33]} 16. Bxe4 {[%clk 0:02:22]}  Rad8 {[%clk 0:02:17]} 17. Kg2 {[%clk 0:02:21]}  e5 {[%clk 0:02:13]} 18. Rh1 {[%clk 0:02:14]}  g6 {[%clk 0:02:09]} 19. Rh3 {[%clk 0:02:08]}  Kg7 {[%clk 0:02:01]} 20. Rbh1 {[%clk 0:01:59]}  Rh8 {[%clk 0:02:00]} 21. g5 {[%clk 0:01:55]}  exd4 {[%clk 0:01:58]} 22. Bxd4+ {[%clk 0:01:53]}  Be5 {[%clk 0:01:59]} 23. Be3 {[%clk 0:01:39]}  f6 {[%clk 0:01:40]} 24. a4 {[%clk 0:01:18]}  fxg5 {[%clk 0:01:34]} 25. Bxg5 {[%clk 0:01:18]}  Bf6 {[%clk 0:01:34]} 26. Bh6+ {[%clk 0:01:17]}  Kf7 {[%clk 0:01:34]} 27. Be3 {[%clk 0:01:16]}  h5 {[%clk 0:01:28]} 28. Bxa7 {[%clk 0:01:15]}  Ne5 {[%clk 0:01:21]} 29. Be3 {[%clk 0:01:09]}  Ng4 {[%clk 0:01:20]} 30. Rf3 {[%clk 0:01:03]}  Kg7 {[%clk 0:01:13]} 31. Bb1 {[%clk 0:00:59]}  Rhe8 {[%clk 0:01:09]} 32. Bc1 {[%clk 0:00:58]}  Bd4 {[%clk 0:01:02]} 33. Bg5 {[%clk 0:00:51]}  Rd7 {[%clk 0:01:00]} 34. Rd1 {[%clk 0:00:51]}  c5 {[%clk 0:00:51]} 35. Rf4 {[%clk 0:00:46]}  Re2 {[%clk 0:00:44]} 36. Bh4 {[%clk 0:00:45]}  Rf7 {[%clk 0:00:41]} 37. Rxf7+ {[%clk 0:00:39]}  Kxf7 {[%clk 0:00:42]} 38. Rf1 {[%clk 0:00:37]}  Rb2 {[%clk 0:00:37]} 39. Be4 {[%clk 0:00:37]}  Ne3+ {[%clk 0:00:36]} 40. Kg1 {[%clk 0:00:34]}  Nxf1 {[%clk 0:00:37]} 41. Bd5+ {[%clk 0:00:33]}  Kg7 {[%clk 0:00:36]} 42. Kxf1 {[%clk 0:00:33]}  Rxb3 {[%clk 0:00:35]} 43. Kg2 {[%clk 0:00:33]}  b6 {[%clk 0:00:30]} 44. Bd8 {[%clk 0:00:31]}  Rb2 {[%clk 0:00:29]} 45. Kg3 {[%clk 0:00:24]}  Bxf2+ {[%clk 0:00:27]} 46. Kf4 {[%clk 0:00:24]}  Bd4 {[%clk 0:00:27]} 47. a5 {[%clk 0:00:23]}  Rf2+ {[%clk 0:00:24]} 48. Kg3 {[%clk 0:00:22]}  bxa5 {[%clk 0:00:22]} 49. Bxa5 {[%clk 0:00:21]}  Rf1 {[%clk 0:00:22]} 50. Bg2 {[%clk 0:00:21]}  Rg1 {[%clk 0:00:20]} 51. Kh2 {[%clk 0:00:20]}  Rxg2+ {[%clk 0:00:20]} 52. Kxg2 {[%clk 0:00:20]}  g5 {[%clk 0:00:20]} 53. Kf3 {[%clk 0:00:20]}  Kg6 {[%clk 0:00:20]} 54. Ke4 {[%clk 0:00:20]}  g4 {[%clk 0:00:20]} 55. Bc7 {[%clk 0:00:20]}  h4 {[%clk 0:00:19]} 56. Kf4 {[%clk 0:00:20]}  Kh5 {[%clk 0:00:18]} 57. Bd8 {[%clk 0:00:20]}  h3 {[%clk 0:00:18]} 58. Kg3 {[%clk 0:00:19]}  Be5+ {[%clk 0:00:18]} 59. Kf2 {[%clk 0:00:19]}  g3+ {[%clk 0:00:18]} 60. Kf3 {[%clk 0:00:19]}  g2 {[%clk 0:00:18]} 61. Kf2 {[%clk 0:00:17]}  Bd4+ {[%clk 0:00:17]} 62. Kf3 {[%clk 0:00:14]}  g1=Q {[%clk 0:00:18]} 0-1